fUSD/lending_fUSD_20240719
["ID","MTS","AMOUNT","RATE_DAILY","PERIOD"]
[332640857,1721399440155,-151.46,0.0002,2]
[332640858,1721399440165,-151.46,0.0002,2]
[332640859,1721399440175,-151.46,0.0002,2]
[332640860,1721399440184,-151.46,0.0002,2]
[332640861,1721399440194,-151.46,0.0002,2]
[332640862,1721399440207,-151.46,0.0002,2]
[332640863,1721399440216,-151.46,0.0002,2]
[332640864,1721399440226,-215.19623657,0.00020109,2]
[332640865,1721399440235,-168.12424796,0.00020587,2]
[332640866,1721399440244,-1201.0,0.00020739,2]
[332640867,1721399440253,-266.73419059,0.00020899,2]
[332640868,1721399440262,-1761.75637949,0.00020899,2]
[332640869,1721399440271,-316.78,0.00020904,3]
[332640870,1721399440280,-2373.03356754,0.00020954,2]
[332640871,1721399440289,-320.67191642,0.00020974,2]
[332640872,1721399440298,-202.77231055,0.00020999,2]
[332640873,1721399440307,-282.03,0.00021616,2]
[332640874,1721399440318,-157.07,0.00021644,2]
[332640875,1721399440330,-302.65,0.00021644,2]
[332640876,1721399440340,-712.0,0.000221,2]
[332640877,1721399440350,-168.12424796,0.00022493,2]
[332640878,1721399440359,-2373.03356754,0.00023038,2]
[332640879,1721399440369,-1411.0,0.000231,2]
[332640880,1721399440378,-320.67191642,0.00023124,2]
[332640881,1721399440388,-2560.45191306,0.000232,2]
[332640882,1721399440397,-2498.73739198,0.00023451,2]
[332640883,1721399440407,-159.89551397,0.00023451,2]
[332640884,1721399440417,-1966.63359154,0.00023451,2]
[332640885,1721399440427,-3325.64054985,0.00023451,2]
[332640886,1721399440436,-5394.61164962,0.00023451,2]
[332640887,1721399440446,-3398.95100233,0.00023451,2]
[332640888,1721399440456,-369.63828489,0.00023451,2]
[332640889,1721399440465,-173.0,0.0002383,7]
[332640890,1721399440474,-3398.95100233,0.00023873,2]
[332640891,1721399440484,-492.08371849,0.00023873,2]
[332640892,1721399440493,-282.03,0.0002388,2]
[332640893,1721399440503,-200.0,0.000239,8]
[332640894,1721399440512,-2000.0,0.00024,14]
[332640895,1721399440522,-317.6364055,0.0002408,2]
[332640896,1721399440531,-449.38004047,0.00024124,2]
[332640897,1721399440540,-163.94798505,0.00024124,2]
[332640898,1721399440549,-196.78621095,0.00024124,2]
[332640899,1721399440558,-155.20868938,0.00024124,2]
[332640900,1721399440568,-439.32354858,0.00024124,2]
[332640901,1721399440578,-196.78621095,0.00024124,2]
[332640902,1721399440587,-150.0,0.00024249,2]
[332640903,1721399440596,-1757.85703762,0.0002426,2]
[332640904,1721399440605,-202.63259192,0.00024275,2]
[332640905,1721399440614,-150.0,0.00024288,2]
[332640906,1721399440623,-4364.14295571,0.000243,2]
[332640907,1721399440635,-247.95268229,0.000243,2]
[332640908,1721399440645,-500.0,0.000243,2]
[332640909,1721399440654,-500.0,0.00024301,2]
[332640910,1721399440663,-500.0,0.00024301,2]
[332640911,1721399440672,-200.0,0.00024301,2]
[332640912,1721399440682,-150.0,0.00024309,2]
[332640913,1721399440691,-150.0,0.00024346,2]
[332640914,1721399440703,-150.0,0.00024363,2]
[332640915,1721399440712,-150.0,0.00024368,2]
[332640916,1721399440721,-500.0,0.00024375,2]
[332640917,1721399440730,-500.0,0.00024375,2]
[332640918,1721399440740,-65.7178141,0.00024375,2]
[332640919,1721399440752,-434.2821859,0.00024375,2]
[332640920,1721399440762,-85.9799021,0.00024375,2]
[332640921,1721399440775,-414.0200979,0.00024375,2]
[332640922,1721399440785,-89.19301531,0.00024375,2]
[332640923,1721399440840,-410.80698469,0.00024375,2]
[332640924,1721399440849,-372.1562,0.00024375,2]
[332640925,1721399440858,-272.42757357,0.00024375,2]
[332640947,1721399442646,-738.20469724,0.00014667,2]
[332640948,1721399442655,-9896.55581023,0.00019431,2]
[332640949,1721399442665,-1000.0,0.000221,2]
[332640950,1721399442675,-727.57242643,0.00024375,2]
[332640951,1721399442684,-1000.0,0.00024375,2]
[332640952,1721399442693,-1000.0,0.00024375,2]
[332640953,1721399442707,-1000.0,0.00024375,2]
[332640954,1721399442717,-1000.0,0.00024375,2]
[332640955,1721399442726,-1000.0,0.00024375,2]
[332640956,1721399442735,-1000.0,0.00024375,2]
[332640957,1721399442744,-1000.0,0.00024375,2]
[332640958,1721399442753,-1000.0,0.00024375,2]
[332640959,1721399442762,-1000.0,0.00024375,2]
[332640960,1721399442771,-1000.0,0.00024375,2]
[332640961,1721399442781,-1000.0,0.00024375,2]
[332640962,1721399442791,-1000.0,0.00024375,2]
[332640963,1721399442800,-1000.0,0.00024375,2]
[332640964,1721399442810,-1000.0,0.00024375,2]
[332640965,1721399442819,-1000.0,0.00024375,2]
[332640966,1721399442829,-1000.0,0.00024375,2]
[332640967,1721399442839,-444.5141,0.00024375,2]
[332640968,1721399442848,-500.0,0.00024375,2]
[332640969,1721399442858,-500.0,0.00024375,2]
[332640970,1721399442867,-500.0,0.00024375,2]
[332640971,1721399442877,-500.0,0.00024375,2]
[332640972,1721399442886,-500.0,0.00024375,2]
[332640973,1721399442896,-500.0,0.00024375,2]
[332640974,1721399442905,-500.0,0.00024375,2]
[332640975,1721399442915,-500.0,0.00024375,2]
[332640976,1721399442924,-500.0,0.00024375,2]
[332640977,1721399442934,-357.6159,0.00024375,2]
[332640978,1721399442943,-304.80832522,0.0002439,2]
[332640979,1721399442957,-272.9328,0.000244,2]
[332640980,1721399442966,-500.0,0.000244,2]
[332640981,1721399442975,-168.24239597,0.000244,2]
[332640982,1721399442984,-257.14302369,0.000244,2]
[332640983,1721399442994,-164.37168205,0.000244,2]
[332640984,1721399443006,-168.12424796,0.000244,2]
[332640985,1721399443015,-218.49372438,0.000244,2]
[332640986,1721399443024,-1135.76179371,0.000244,2]
[332640987,1721399443035,-916.9314594,0.000244,2]
[332640988,1721399443045,-150.0,0.0002443,2]
[332640989,1721399443055,-300.0,0.00024437,2]
[332640991,1721399443066,-300.0,0.00024446,2]
[332640993,1721399443076,-200.0,0.0002445,2]
[332640995,1721399443085,-150.0,0.00024486,2]
[332640997,1721399443095,-151.41,0.0002449,2]
[332641000,1721399443105,-151.41,0.0002449,2]
[332641002,1721399443114,-151.41,0.0002449,2]
[332641004,1721399443124,-151.41,0.0002449,2]
[332641006,1721399443133,-151.41,0.0002449,2]
[332641008,1721399443143,-151.41,0.0002449,2]
[332641010,1721399443153,-150.0,0.00024493,2]
[332641012,1721399443162,-517.91842238,0.00024496,2]
[332641015,1721399443172,-284.71584651,0.00024497,2]
[332641017,1721399443183,-207.74765,0.00024497,2]
[332641019,1721399443192,-2277.72677208,0.00024497,2]
[332641021,1721399443204,-150.0,0.00024499,10]
[332641023,1721399443213,-150.0,0.00024499,10]
[332641025,1721399443223,-500.0,0.00024499,2]
[332641055,1721399443232,-238.31750982,0.00024499,2]
[332641057,1721399443519,-500.0,0.00024499,2]
[332641059,1721399443529,-334.50530271,0.00024499,2]
[332641061,1721399443538,-500.0,0.00024499,2]
[332641062,1721399443548,-500.0,0.00024499,2]
[332641063,1721399443557,-155.3283253,0.00024499,2]
[332641064,1721399443567,-188.92918688,0.00024499,2]
[332641065,1721399443576,-500.0,0.00024499,2]
[332641066,1721399443585,-190.91784465,0.00024499,2]
[332641067,1721399443595,-500.0,0.00024499,2]
[332641068,1721399443604,-500.0,0.00024499,2]
[332641069,1721399443613,-320424.48612269,0.000245,11]
[332641070,1721399443625,-81788.36898512,0.000245,5]
[332641071,1721399443892,-79441.5878515,0.000245,5]
[332641074,1721399443904,-301.88012184,0.000245,5]
[332641076,1721399443916,-5579.18028061,0.000245,5]
[332641078,1721399443928,-5900.2399086,0.000245,5]
[332641079,1721399443940,-199253.85293452,0.000245,5]
[332641082,1721399443956,-579.35,0.000245,5]
[332641085,1721399443976,-3158.60889169,0.000245,5]
[332641087,1721399443988,-1668.02297108,0.000245,5]
[332641089,1721399444001,-5027.27992,0.000245,5]
[332641091,1721399444012,-12973.483531,0.000245,5]
[332641093,1721399444025,-299393.45761936,0.000245,5]
[332641095,1721399444036,-49473.60943202,0.000245,5]
[332641098,1721399444049,-7848.50453504,0.000245,5]
[332641100,1721399444061,-4307.66337516,0.000245,5]
[332641102,1721399444074,-4030.4250404,0.000245,5]
[332641104,1721399444085,-387.192418,0.000245,5]
[332641113,1721399444160,-3262.44251899,0.000245,5]
[332641177,1721399445720,-809.0,0.00020739,2]
[332641178,1721399445730,-3003.8620695,0.000245,5]
[332641179,1721399445742,-564078.99465707,0.000245,5]
[332641180,1721399445754,-2800.21661438,0.000245,5]
[332641181,1721399445765,-508.5,0.000245,5]
[332641182,1721399445776,-644.05,0.000245,5]
[332641183,1721399445789,-11182.99173202,0.000245,5]
[332641184,1721399445801,-2086.07995476,0.000245,5]
[332641185,1721399445812,-262.03948016,0.000245,5]
[332641186,1721399445825,-1246.58900404,0.000245,5]
[332641187,1721399445837,-1300.40774962,0.000245,5]
[332641188,1721399445849,-742.2292,0.000245,5]
[332641189,1721399445861,-2609.99752265,0.000245,5]
[332641190,1721399445894,-12115.36860853,0.000245,5]
[332641191,1721399445907,-3281.55,0.000245,5]
[332641192,1721399445933,-1348.24207892,0.000245,5]
[332641199,1721399566910,500.0,0.00014,2]
[332641200,1721399578659,236051.03548815,0.00014,2]
[332641201,1721399612568,155.08767161,0.00014,2]
[332641202,1721399665592,235873.18809261,0.00014,2]
[332641203,1721399731569,216.44256872,0.00014,2]
[332641204,1721399761269,155.0,0.00013999,2]
[332641207,1721399828122,740.62332199,0.00013999,2]
[332641209,1721399843139,164.42527991,0.00013999,2]
[332641210,1721399843202,4033.86865857,0.00013999,2]
[332641211,1721399844682,2171.10781047,0.00013999,2]
[332641212,1721399846585,236051.03548815,0.00013999,2]
[332641213,1721399847113,870.63292453,0.00013999,2]
[332641214,1721399851128,180.21705847,0.00013999,2]
[332641215,1721399860575,364.98775744,0.00013999,2]
[332641216,1721399865230,236051.03548815,0.00013999,2]
[332641219,1721399956122,870.63292453,0.00013999,2]
[332641220,1721399986590,236051.03548815,0.00013999,2]
[332641221,1721399991222,15457.78265303,0.00013999,2]
[332641222,1721399997826,2000.0,0.00013,3]
[332641223,1721400025070,1000.0,0.00014,2]
[332641224,1721400029972,-500.0,0.00014161,2]
[332641226,1721400055626,870.63292453,0.00013,2]
[332641227,1721400066616,236051.03548815,0.00013,2]
[332641228,1721400067115,870.63292453,0.00013,2]
[332641230,1721400079491,160.0,0.00012831,2]
[332641238,1721400113851,706.0,0.00014,3]
[332641239,1721400129793,9250.36772578,0.00013999,2]
[332641243,1721400181619,870.63292453,0.00014,2]
[332641244,1721400219316,558.51,0.00013729,2]
[332641245,1721400228259,28077.88417786,0.00013999,2]
[332641246,1721400289723,15457.78265303,0.00013999,2]
[332641247,1721400299112,986.88599186,0.00013729,2]
[332641248,1721400303140,802.80753139,0.000139,7]
[332641255,1721400378255,163.09,0.00012402,2]
[332641256,1721400407750,258.06682828,0.0001383,2]
[332641263,1721400591332,10525.79135321,0.00013999,2]
[332641266,1721400612233,160.0,0.00011952,2]
[332641281,1721400631748,-2904.0870986,0.00014089,2]
[332641282,1721400631761,-2797.28086186,0.00014089,2]
[332641283,1721400631823,-308.53497671,0.00014089,2]
[332641284,1721400631835,-104.28506283,0.00014089,2]
[332641285,1721400631846,-162.14215493,0.00014219,2]
[332641286,1721400631856,-300.0,0.00014232,2]
[332641287,1721400631866,-2273.4642364,0.00014451,2]
[332641288,1721400631904,-8901.09452927,0.00014451,2]
[332641289,1721400631914,-525.16912908,0.00014519,2]
[332641290,1721400631925,-300.0,0.00014578,2]
[332641291,1721400631937,-675.962,0.000147,2]
[332641292,1721400631946,-339.77434165,0.00014776,2]
[332641293,1721400631958,-13.82483527,0.00014776,2]
[332641294,1721400631969,-1000.00018692,0.00014789,2]
[332641295,1721400631979,-4469.17282066,0.00014789,2]
[332641296,1721400631990,-181.58500526,0.00014789,2]
[332641297,1721400631999,-484.35251733,0.00014899,2]
[332641298,1721400632009,-242.83152267,0.00014899,2]
[332641299,1721400632018,-155.17041036,0.00014988,2]
[332641300,1721400632027,-150.0,0.00014999,2]
[332641301,1721400632037,-373.81270153,0.00015,2]
[332641302,1721400632048,-3182.85729847,0.00015,2]
[332641303,1721400632058,-150.0,0.00015,2]
[332641304,1721400632067,-7146.30529242,0.00015,2]
[332641305,1721400632078,-1489.75692948,0.00015,2]
[332641306,1721400632089,-976.69261047,0.00015,2]
[332641307,1721400632100,-635.97483763,0.00015,2]
[332641308,1721400632111,-531.17276182,0.00015,2]
[332641311,1721400632126,-883.54995,0.00015,2]
[332641313,1721400632137,-846.47,0.00015,2]
[332641315,1721400632148,-350.2299999,0.00015,2]
[332641320,1721400632180,-1195.13806031,0.00015,2]
[332641322,1721400632196,-1366.22955797,0.00015,2]
[332641355,1721400632533,-1198.43,0.00015342,2]
[332641356,1721400632546,-150.0,0.00015342,2]
[332641357,1721400632556,-200.02,0.00015344,2]
[332641358,1721400632566,-525.2500057,0.00015369,2]
[332641359,1721400632575,-250.0,0.00015437,2]
[332641360,1721400632587,-172.48,0.00015475,2]
[332641361,1721400632598,-250.0,0.00015487,2]
[332641362,1721400632608,-1485.57386036,0.0001556,2]
[332641363,1721400632623,-919.19613964,0.0001556,2]
[332641364,1721400632632,-615.32,0.00015561,2]
[332641365,1721400632643,-420.0,0.00015588,2]
[332641366,1721400632653,-166.95,0.00015647,2]
[332641367,1721400632664,-259.2633,0.00015657,2]
[332641368,1721400632676,-1832.28647162,0.00015666,2]
[332641369,1721400632692,-12059.06374531,0.00015666,2]
[332641370,1721400632704,-6520.63779727,0.00015666,2]
[332641375,1721400637749,-1031.63030969,0.00015666,2]
[332641376,1721400637836,-1246.7718055,0.00014487,2]
[332641377,1721400637846,-2456.38167611,0.00015666,2]
[332641378,1721400637855,-499.99,0.00015666,2]
[332641379,1721400637865,-3572.82184959,0.00015757,2]
[332641380,1721400637876,-758.11221771,0.00015757,2]
[332641381,1721400637887,-265.615,0.00015757,2]
[332641382,1721400637898,-5191.70130782,0.00015757,2]
[332641383,1721400637925,-987.45743925,0.00015757,2]
[332641384,1721400637936,-1102.8587835,0.00015757,2]
[332641385,1721400637949,-924.73295125,0.00015757,2]
[332641386,1721400637960,-619.24733185,0.00015757,2]
[332641387,1721400638013,-681.3278,0.00015757,2]
[332641388,1721400638026,-23955.94640735,0.00015757,2]
[332641389,1721400638039,-1500.0,0.00015818,5]
[332641390,1721400638048,-1080.27,0.00015835,2]
[332641391,1721400638057,-1022.73777937,0.0001587,2]
[332641392,1721400638069,-49.65166505,0.0001587,2]
[332641393,1721400638078,-300.0,0.00015962,2]
[332641394,1721400638088,-3307.88,0.00015963,2]
[332641395,1721400638097,-370.47,0.00015992,2]
[332641396,1721400638106,-558.51,0.00015993,2]
[332641397,1721400638116,-494.49097047,0.00015999,2]
[332641398,1721400638125,-155.02986107,0.00015999,2]
[332641399,1721400638134,-415.21705579,0.00015999,2]
[332641400,1721400638144,-2507.37398623,0.00015999,2]
[332641401,1721400638153,-164.53646121,0.00016,2]
[332641402,1721400638164,-464.81408718,0.00016,2]
[332641403,1721400638175,-1470.64945161,0.00016,2]
[332641404,1721400638185,-492.55741441,0.00016033,2]
[332641405,1721400638196,-162.14215493,0.00016088,2]
[332641406,1721400638206,-155.13031876,0.00016159,2]
[332641407,1721400638215,-165.2,0.00016161,2]
[332641408,1721400638224,-304.28,0.00016161,2]
[332641409,1721400638234,-572.4,0.00016206,2]
[332641410,1721400638243,-155.69072934,0.00016232,2]
[332641411,1721400638253,-306.49145131,0.00016232,2]
[332641413,1721400638263,-165.2,0.00016242,2]
[332641414,1721400638272,-169.01,0.0001632,2]
[332641415,1721400638282,-13301.685,0.00016358,2]
[332641416,1721400638291,-155.45878526,0.00016358,2]
[332641417,1721400638301,-356.67725809,0.00016425,2]
[332641418,1721400638311,-231.32570794,0.00016425,2]
[332641419,1721400638320,-1255.14092913,0.00016425,2]
[332641420,1721400638329,-544.76386976,0.00016441,2]
[332641421,1721400638339,-12866.19692944,0.00016441,2]
[332641422,1721400638351,-399.92553999,0.00016441,2]
[332641489,1721400639819,-461.22152807,0.00016441,2]
[332641490,1721400639829,-889.96342784,0.0001647,2]
[332641491,1721400639839,-201.64801877,0.0001647,2]
[332641492,1721400639848,-175.6996276,0.0001647,2]
[332641493,1721400639858,-37.37454772,0.00016799,2]
[332641518,1721400640503,-933.43431332,0.00016799,2]
[332641520,1721400640515,-160.44828414,0.00016799,2]
[332641522,1721400640525,-1118.57952268,0.00016799,2]
[332641524,1721400640536,-648.70102982,0.00016799,2]
[332641526,1721400640545,-652.29655545,0.00016855,2]
[332641528,1721400640555,-304.97378037,0.00016855,2]
[332641529,1721400640564,-155.0,0.00016882,2]
[332641531,1721400640574,-737.50264379,0.00016922,2]
[332641533,1721400640587,-10358.18735621,0.00016922,2]
[332641535,1721400640596,-8121.16,0.00016922,2]
[332641537,1721400640607,-200.0,0.00017,2]
[332641539,1721400640617,-587.0,0.00017074,2]
[332641541,1721400640627,-24755.04083467,0.00017399,2]
[332641543,1721400640636,-101805.0,0.000174,2]
[332641545,1721400640646,-11493.0,0.000177,3]
[332641546,1721400640656,-150.24,0.00017794,2]
[332641548,1721400640666,-886.11660513,0.000178,2]
[332641550,1721400640682,-1132.89729487,0.000178,2]
[332641552,1721400640695,-499.0,0.000179,2]
[332641554,1721400640705,-145.83190513,0.00017928,2]
[332641556,1721400640717,-14.16809487,0.00017928,2]
[332641558,1721400640726,-370.47,0.00017991,2]
[332641560,1721400640736,-272.1508861,0.00018,5]
[332641562,1721400640750,-312.004999,0.00018,5]
[332641564,1721400640762,-6411.89114171,0.00018,5]
[332641566,1721400640774,-308.94361421,0.00018,5]
[332641568,1721400640786,-3099.48686981,0.00018,5]
[332641570,1721400640798,-1088.52248917,0.00018,5]
[332641572,1721400640807,-562.9981,0.00018132,2]
[332641574,1721400640817,-572.4,0.00018231,2]
[332641575,1721400640827,-479.70549563,0.00018257,2]
[332641577,1721400640838,-78.80450437,0.00018257,2]
[332641579,1721400640848,-362.6436,0.000183,2]
[332641581,1721400640857,-163.09,0.00018604,2]
[332641583,1721400640866,-823.0,0.00018701,2]
[332641585,1721400640876,-250.0,0.00019,2]
[332641587,1721400640886,-500.0,0.00019045,2]
[332641588,1721400640896,-155.0,0.00019177,2]
[332641590,1721400640905,-277.3712,0.000193,2]
[332641592,1721400640915,-308.78185671,0.00019451,2]
[332641594,1721400640932,-455.39912448,0.000195,2]
[332641596,1721400640945,-370.47,0.0001999,2]
[332641598,1721400640956,-572.4,0.00020257,2]
[332641600,1721400640966,-182.25416917,0.00020389,2]
[332641602,1721400640976,-1152.0,0.00020483,2]
[332641604,1721400640986,-1661.0,0.00020489,2]
[332641606,1721400640997,-361.0,0.00020489,2]
[332641608,1721400641007,-1252.0,0.00020489,2]
[332641609,1721400641017,-1829.0,0.00020489,2]
[332641611,1721400641027,-445.0,0.00020489,2]
[332641613,1721400641037,-450.0,0.00020489,2]
[332641615,1721400641047,-620.0,0.00020489,2]
[332641617,1721400641058,-549.0,0.00020489,2]
[332641619,1721400641068,-2307.606,0.00020489,2]
[332641621,1721400641077,-1992.0,0.00020489,2]
[332641623,1721400641087,-3280.0,0.00020489,2]
[332641624,1721400641097,-150.0,0.00020489,2]
[332641626,1721400641106,-152.0,0.00020489,2]
[332641628,1721400641116,-5116.0,0.00020489,2]
[332641630,1721400641127,-152.0,0.00020489,2]
[332641632,1721400641138,-1201.0,0.00020489,2]
[332641634,1721400641149,-151.299,0.00020489,2]
[332641636,1721400641161,-1667.0,0.00020489,2]
[332641638,1721400641170,-209.076,0.00020489,2]
[332641640,1721400641181,-5766.269,0.00020489,2]
[332641642,1721400641194,-154.865,0.00020489,2]
[332641644,1721400641204,-27533.31960995,0.00020489,2]
[332641646,1721400641217,-10781.68039005,0.00020489,2]
[332641648,1721400641226,-156.085,0.00020489,2]
[332641650,1721400641238,-150.446,0.00020489,2]
[332641652,1721400641248,-150.302,0.00020489,2]
[332641653,1721400641258,-1072.0,0.00020489,2]
[332641655,1721400641267,-558.51,0.00020521,2]
[332641657,1721400641277,-5637.59258756,0.00020588,2]
[332641659,1721400641288,-1761.75637949,0.00020999,2]
[332641661,1721400641297,-300.0,0.00021,2]
[332641663,1721400641308,-19431.0,0.00021,2]
[332641665,1721400641319,-615.32,0.00021785,2]
[332641667,1721400641330,-159.95,0.00021918,2]
[332641669,1721400641340,-150.01,0.00021918,2]
[332641671,1721400641350,-200.0,0.00021918,2]
[332641673,1721400641359,-200.0,0.00021918,2]
[332641675,1721400641370,-200.0,0.00021918,2]
[332641676,1721400641379,-370.47,0.00021989,2]
[332641678,1721400641389,-572.4,0.00022283,2]
[332641680,1721400641398,-150.74278861,0.00022315,4]
[332641682,1721400641409,-1613.0,0.00022435,2]
[332641684,1721400641418,-207.89,0.00022729,2]
[332641686,1721400641427,-558.51,0.00022785,2]
[332641688,1721400641437,-152.18495313,0.00022867,2]
[332641689,1721400641448,-152.97309436,0.00022882,2]
[332641691,1721400641457,-350.0,0.00023,2]
[332641693,1721400641467,-166.66666668,0.00023007,2]
[332641695,1721400641476,-206.20339611,0.00023086,2]
[332641697,1721400641486,-156.26491682,0.00023091,2]
[332641699,1721400641496,-206.20339611,0.00023286,2]
[332641701,1721400641507,-400.0,0.00023288,2]
[332641702,1721400641516,-356.94916451,0.00023288,2]
[332641704,1721400641526,-217.86531155,0.00023288,2]
[332641706,1721400641535,-151.61422069,0.00023387,2]
[332641708,1721400641545,-317.32445577,0.00023389,2]
[332641710,1721400641555,-151.61422069,0.0002341,2]
[332641712,1721400641566,-156.26491682,0.00023416,2]
[332641713,1721400641576,-2498.73739198,0.00023451,2]
[332641715,1721400641588,-702.26829574,0.00023451,2]
[332641717,1721400641598,-1266.87800095,0.00023451,2]
[332641719,1721400641608,-1819.296,0.00023489,2]
[332641721,1721400641618,-150.0,0.00023489,2]
[332641723,1721400641629,-150.0,0.00023489,2]
[332641725,1721400641639,-150.0,0.00023489,2]
[332641727,1721400641649,-150.0,0.00023489,2]
[332641728,1721400641658,-150.0,0.00023489,2]
[332641730,1721400641669,-206.20339611,0.00023499,2]
[332641732,1721400641683,-151.9202688,0.00023535,2]
[332641734,1721400641693,-152.97309436,0.00023642,2]
[332641736,1721400641702,-162.63776292,0.00023658,2]
[332641738,1721400641713,-200.0,0.000237,2]
[332641740,1721400641727,-166.66666667,0.00023724,2]
[332641742,1721400641736,-7500.0,0.00023773,2]
[332641744,1721400641747,-206.20339611,0.00023841,2]
[332641746,1721400641759,-152.18495313,0.00023844,2]
[332641748,1721400641769,-152.97309436,0.00023862,2]
[332641750,1721400641779,-3398.95100233,0.00023873,2]
[332641752,1721400641789,-2202.33424627,0.00023873,2]
[332641754,1721400641800,-500.0,0.000239,8]
[332641756,1721400641810,-152.18495313,0.00023948,2]
[332641757,1721400641819,-370.47,0.00023988,2]
[332641760,1721400641831,-1014.0,0.00024,2]
[332641761,1721400641841,-156.09734749,0.00024013,2]
[332641763,1721400641851,-156.26491682,0.00024042,2]
[332641765,1721400641860,-152.97309436,0.00024091,2]
[332641767,1721400641869,-465.43893877,0.00024124,2]
[332641769,1721400641879,-162.63776292,0.00024227,2]
[332641771,1721400641889,-173.12304,0.0002425,2]
[332641773,1721400641899,-150.0,0.00024292,2]
[332641775,1721400641908,-500.0,0.00024302,2]
[332641777,1721400641918,-200.0,0.00024302,2]
[332641778,1721400641928,-572.4,0.00024309,2]
[332641780,1721400641939,-152.97309436,0.00024314,2]
[332641782,1721400641951,-150.0,0.00024332,2]
[332641784,1721400641961,-150.0,0.00024356,2]
[332641786,1721400641970,-150.0,0.00024358,2]
[332641788,1721400641982,-151.8269013,0.000244,2]
[332641790,1721400641991,-239.82923585,0.000244,2]
[332641792,1721400642001,-162.40005167,0.000244,2]
[332641793,1721400642010,-150.0,0.00024406,2]
[332641795,1721400642019,-312.24,0.00024411,2]
[332641797,1721400642029,-162.63776292,0.0002443,2]
[332641798,1721400642038,-260.92757495,0.0002448,3]
[332641799,1721400642047,-782.78272485,0.0002449,3]
[332641800,1721400642057,-151.42,0.0002449,2]
[332641801,1721400642066,-782.78272485,0.0002449,3]
[332641802,1721400642076,-151.42,0.0002449,2]
[332641803,1721400642416,-196.68,0.00024495,5]
[332641804,1721400642426,-922.54479849,0.00024496,3]
[332641805,1721400642435,-2203.0855119,0.00024497,2]
[332641806,1721400642446,-1369.25730673,0.00024499,10]
[332641807,1721400642455,-214734.94217624,0.000245,11]
[332641808,1721400642467,-2837.74696614,0.000245,11]
[332641809,1721400642482,-8524.58733909,0.000245,11]
[332641810,1721400642491,-15568.68699601,0.000245,5]
[332641811,1721400642504,-3034.23261669,0.000245,5]
[332641812,1721400642515,-60293.08773721,0.000245,5]
[332641813,1721400642526,-412.39,0.000245,5]
[332641814,1721400642537,-1619.20385,0.000245,5]
[332641828,1721400642884,-1118.57952268,0.0001647,2]
[332641829,1721400642894,-372853.83807383,0.000245,5]
[332641830,1721400642907,-500.0,0.000245,5]
[332641831,1721400642918,-1067.81353758,0.000245,5]
[332641832,1721400642930,-455.24917089,0.000245,5]
[332641833,1721400642946,-1150.377831,0.000245,5]
[332641834,1721400642957,-287.87009241,0.000245,5]
[332641835,1721400642969,-286.45013588,0.000245,5]
[332641836,1721400642980,-292.5,0.000245,5]
[332641837,1721400642991,-344.447979,0.000245,5]
[332641838,1721400643003,-1879.5824,0.000245,5]
[332641839,1721400643014,-83587.62782067,0.000245,5]
[332641840,1721400643036,-0.00132674,0.000245,5]
[332641841,1721400643056,-1949.9196828,0.000245,5]
[332641842,1721400643067,-1031.497246,0.000245,5]
[332641843,1721400643110,-39368.41337824,0.000245,5]
[332641874,1721400643825,-5875.0,0.000245,5]
[332641875,1721400643837,-1679.84852096,0.000245,5]
[332641876,1721400643853,-795.92013436,0.000245,5]
[332641877,1721400643865,-5976.31321052,0.000245,5]
[332641878,1721400643876,-350.62,0.000245,5]
[332641879,1721400643888,-2448.6,0.000245,5]